fUSD/lending_fUSD_20250806
["ID","MTS","AMOUNT","RATE_DAILY","PERIOD"]
[377581311,1754448650299,-151.0,0.00035616,2]
[377581312,1754448650309,-500.0,0.00035616,14]
[377581313,1754448650318,-500.0,0.00035616,14]
[377581314,1754448650327,-400.0,0.00035616,14]
[377581315,1754448650336,-500.0,0.00035616,14]
[377581316,1754448650346,-500.0,0.00035616,14]
[377581317,1754448650356,-151.0,0.00035616,2]
[377581318,1754448650365,-500.0,0.00035616,14]
[377581319,1754448650376,-400.0,0.00035616,14]
[377581320,1754448650385,-400.0,0.00035616,14]
[377581321,1754448650394,-2115.6,0.00035616,14]
[377581322,1754448650403,-1377.85,0.00035616,14]
[377581323,1754448650412,-1377.85,0.00035616,14]
[377581324,1754448650422,-1377.85,0.00035616,14]
[377581325,1754448650432,-195.838328,0.00035616,7]
[377581326,1754448650441,-151.0,0.00035616,7]
[377581327,1754448650451,-195.838328,0.00035616,7]
[377581328,1754448650460,-151.0,0.00035616,7]
[377581329,1754448650469,-151.0,0.00035616,7]
[377581330,1754448650479,-2048.1,0.00035616,14]
[377581331,1754448650489,-516.87991406,0.00035616,14]
[377581332,1754448650499,-400.0,0.00035616,14]
[377581333,1754448650508,-890.38,0.00035616,14]
[377581334,1754448650518,-195.838328,0.00035616,7]
[377581335,1754448650527,-400.0,0.00035616,14]
[377581336,1754448650537,-195.838328,0.00035616,7]
[377581337,1754448650546,-763.76,0.00035616,14]
[377581338,1754448650555,-400.0,0.00035616,14]
[377581339,1754448650565,-400.0,0.00035616,14]
[377581340,1754448650576,-400.0,0.00035616,14]
[377581341,1754448650585,-151.0,0.00035616,7]
[377581342,1754448650595,-151.0,0.00035616,7]
[377581343,1754448650604,-400.0,0.00035616,14]
[377581344,1754448650614,-151.0,0.00035616,7]
[377581345,1754448650623,-400.0,0.00035616,14]
[377581346,1754448650633,-401.01997191,0.00035616,14]
[377581347,1754448650643,-400.0,0.00035616,14]
[377581348,1754448650652,-166.945974,0.00035616,14]
[377581349,1754448650661,-554.46,0.00035616,14]
[377581350,1754448650670,-1978.5,0.00035616,14]
[377581351,1754448650679,-400.0,0.00035616,14]
[377581352,1754448650689,-3061.86,0.00035616,14]
[377581353,1754448650698,-400.0,0.00035616,14]
[377581354,1754448650708,-1869.25,0.00035616,14]
[377581355,1754448650717,-572.41,0.00035616,14]
[377581356,1754448650726,-1241.1,0.00035616,14]
[377581357,1754448650736,-1742.73,0.00035616,14]
[377581358,1754448650746,-400.0,0.00035616,14]
[377581359,1754448650757,-589.98,0.00035616,14]
[377581360,1754448650766,-1056.28,0.00035616,14]
[377581361,1754448650775,-1789.45,0.00035616,14]
[377581362,1754448650785,-400.0,0.00035616,14]
[377581363,1754448650794,-400.0,0.00035616,14]
[377581364,1754448650804,-3264.35,0.00035616,14]
[377581365,1754448650814,-400.0,0.00035616,14]
[377581366,1754448650824,-1465.39,0.00035616,14]
[377581367,1754448650834,-400.0,0.00035616,14]
[377581368,1754448650844,-400.0,0.00035616,14]
[377581369,1754448650858,-1335.74,0.00035616,14]
[377581370,1754448650867,-719.58,0.00035616,14]
[377581371,1754448650876,-400.0,0.00035616,14]
[377581372,1754448650886,-1301.62,0.00035616,14]
[377581373,1754448650895,-400.0,0.00035616,14]
[377581374,1754448650904,-400.0,0.00035616,14]
[377581375,1754448651042,-1906.92,0.00035616,14]
[377581376,1754448651051,-493.26,0.00035616,14]
[377581377,1754448651061,-2206.71,0.00035616,14]
[377581378,1754448651070,-400.0,0.00035616,14]
[377581379,1754448651080,-400.0,0.00035616,14]
[377581380,1754448651089,-451.74,0.00035616,14]
[377581381,1754448651100,-400.0,0.00035616,14]
[377581382,1754448651110,-400.0,0.00035616,14]
[377581383,1754448651119,-400.0,0.00035616,14]
[377581384,1754448651129,-400.0,0.00035616,14]
[377581385,1754448651139,-400.0,0.00035616,14]
[377581386,1754448651148,-986.68,0.00035616,14]
[377581387,1754448651157,-802.3,0.00035616,14]
[377581388,1754448651167,-400.0,0.00035616,14]
[377581389,1754448651176,-1276.43,0.00035616,14]
[377581390,1754448651185,-276.73779712,0.00035616,14]
[377581391,1754448651194,-922.85,0.00035616,14]
[377581392,1754448651203,-947.42,0.00035616,14]
[377581393,1754448651213,-2195.08,0.00035616,14]
[377581394,1754448651222,-1464.57,0.00035616,14]
[377581395,1754448651231,-400.0,0.00035616,14]
[377581396,1754448651241,-400.0,0.00035616,14]
[377581397,1754448651250,-400.0,0.00035616,14]
[377581398,1754448651259,-400.0,0.00035616,14]
[377581399,1754448651268,-500.0,0.00035616,2]
[377581400,1754448651276,-153.920522,0.00035616,7]
[377581401,1754448651286,-500.0,0.00035616,2]
[377581402,1754448651294,-500.0,0.00035616,2]
[377581403,1754448651303,-500.0,0.00035616,2]
[377581404,1754448651312,-543.87858427,0.00035616,2]
[377581405,1754448651321,-2197.84,0.00035616,14]
[377581406,1754448651331,-804.15,0.00035616,14]
[377581407,1754448651339,-400.0,0.00035616,14]
[377581408,1754448651348,-820.58,0.00035616,14]
[377581409,1754448651358,-400.0,0.00035616,14]
[377581410,1754448651366,-684.16,0.00035616,14]
[377581411,1754448651375,-771.59,0.00035616,14]
[377581412,1754448651384,-771.59,0.00035616,14]
[377581413,1754448651393,-771.59,0.00035616,14]
[377581414,1754448651402,-771.59,0.00035616,14]
[377581415,1754448651412,-611.45,0.00035616,14]
[377581416,1754448651421,-771.59,0.00035616,14]
[377581417,1754448651430,-771.59,0.00035616,14]
[377581418,1754448651439,-771.59,0.00035616,14]
[377581419,1754448651448,-771.59,0.00035616,14]
[377581420,1754448651457,-744.31,0.00035616,14]
[377581421,1754448651466,-400.0,0.00035616,14]
[377581422,1754448651475,-1536.69,0.00035616,14]
[377581423,1754448651485,-2158.92,0.00035616,14]
[377581424,1754448651495,-400.0,0.00035616,14]
[377581425,1754448651504,-400.0,0.00035616,14]
[377581426,1754448651513,-519.45180948,0.00035616,14]
[377581427,1754448651523,-400.0,0.00035616,14]
[377581428,1754448651532,-400.0,0.00035616,14]
[377581429,1754448651542,-461.52,0.00035616,14]
[377581430,1754448651551,-403.72046479,0.00035616,14]
[377581431,1754448651560,-2500.0,0.00035616,14]
[377581432,1754448651569,-400.0,0.00035616,14]
[377581433,1754448651578,-400.0,0.00035616,14]
[377581434,1754448651588,-545.58,0.00035616,14]
[377581435,1754448651597,-850.08,0.00035616,14]
[377581436,1754448651606,-1521.24,0.00035616,14]
[377581437,1754448651615,-274.64139615,0.00035616,14]
[377581438,1754448651624,-400.0,0.00035616,14]
[377581439,1754448651633,-300.0,0.00035616,14]
[377581440,1754448651642,-521.67,0.00035616,14]
[377581441,1754448651651,-175.15787008,0.00035616,14]
[377581442,1754448651660,-400.0,0.00035616,14]
[377581443,1754448651669,-2094.08,0.00035616,14]
[377581444,1754448651678,-1086.81,0.00035616,14]
[377581445,1754448651687,-400.0,0.00035616,14]
[377581446,1754448651697,-1148.89,0.00035616,14]
[377581447,1754448651706,-400.0,0.00035616,14]
[377581448,1754448651715,-400.0,0.00035616,14]
[377581449,1754448651724,-400.0,0.00035616,14]
[377581450,1754448651734,-400.0,0.00035616,14]
[377581451,1754448651743,-647.61,0.00035616,14]
[377581452,1754448651752,-1804.32,0.00035616,14]
[377581453,1754448651761,-400.0,0.00035616,14]
[377581454,1754448651770,-688.12,0.00035616,14]
[377581455,1754448651780,-575.0,0.00035616,14]
[377581456,1754448651790,-460.78,0.00035616,14]
[377581457,1754448651800,-1509.88,0.00035616,14]
[377581458,1754448651810,-400.0,0.00035616,14]
[377581459,1754448651820,-400.0,0.00035616,14]
[377581460,1754448651829,-400.0,0.00035616,14]
[377581461,1754448651838,-400.0,0.00035616,14]
[377581462,1754448651848,-1622.09,0.00035616,14]
[377581463,1754448651862,-1836.14,0.00035616,14]
[377581464,1754448651872,-400.0,0.00035616,14]
[377581465,1754448651881,-400.0,0.00035616,14]
[377581466,1754448651891,-400.0,0.00035616,14]
[377581467,1754448651900,-774.95,0.00035616,14]
[377581468,1754448651909,-400.0,0.00035616,14]
[377581469,1754448651918,-449.13,0.00035616,14]
[377581470,1754448651929,-400.0,0.00035616,14]
[377581471,1754448651939,-2961.28,0.00035616,14]
[377581472,1754448651948,-1032.0,0.00035616,14]
[377581473,1754448651957,-500.0,0.00035616,14]
[377581474,1754448651967,-500.0,0.00035616,14]
[377581475,1754448651976,-878.8,0.00035616,14]
[377581476,1754448651986,-500.0,0.00035616,14]
[377581477,1754448651996,-400.0,0.00035616,14]
[377581478,1754448652005,-500.0,0.00035616,14]
[377581479,1754448652015,-1829.37,0.00035616,14]
[377581480,1754448652024,-2880.34,0.00035616,14]
[377581481,1754448652033,-500.0,0.00035616,14]
[377581482,1754448652042,-500.0,0.00035616,14]
[377581483,1754448652052,-500.0,0.00035616,14]
[377581484,1754448652062,-500.0,0.00035616,14]
[377581485,1754448652071,-500.0,0.00035616,14]
[377581486,1754448652080,-1462.8,0.00035616,14]
[377581487,1754448652089,-3418.23,0.00035616,14]
[377581488,1754448652098,-500.0,0.00035616,14]
[377581489,1754448652110,-508.36946212,0.00035616,14]
[377581490,1754448652119,-1158.06,0.00035616,14]
[377581491,1754448652128,-465.73082988,0.00035616,14]
[377581492,1754448652139,-400.0,0.00035616,14]
[377581493,1754448652148,-400.0,0.00035616,14]
[377581494,1754448652157,-1563.04,0.00035616,14]
[377581495,1754448652166,-404.30072922,0.00035616,14]
[377581496,1754448652176,-400.0,0.00035616,14]
[377581497,1754448652185,-400.0,0.00035616,14]
[377581498,1754448652194,-650.36,0.00035616,14]
[377581499,1754448652204,-1923.25,0.00035616,14]
[377581500,1754448652213,-400.0,0.00035616,14]
[377581501,1754448652222,-2020.14,0.00035616,14]
[377581502,1754448652232,-2285.89,0.00035616,14]
[377581503,1754448652241,-3412.85,0.00035616,14]
[377581504,1754448652250,-444.68,0.00035616,14]
[377581505,1754448652259,-400.0,0.00035616,14]
[377581506,1754448652269,-400.0,0.00035616,14]
[377581507,1754448652278,-400.0,0.00035616,14]
[377581508,1754448652287,-400.0,0.00035616,14]
[377581509,1754448652297,-400.0,0.00035616,14]
[377581510,1754448652307,-1704.34,0.00035616,14]
[377581511,1754448652317,-400.0,0.00035616,14]
[377581512,1754448652329,-981.32,0.00035616,14]
[377581513,1754448652338,-400.0,0.00035616,14]
[377581514,1754448652348,-422.51,0.00035616,14]
[377581515,1754448652356,-1217.8,0.00035616,14]
[377581516,1754448652366,-400.0,0.00035616,14]
[377581517,1754448652375,-400.0,0.00035616,14]
[377581518,1754448652384,-400.0,0.00035616,14]
[377581519,1754448652393,-719.56,0.00035616,14]
[377581520,1754448652402,-426.16,0.00035616,14]
[377581521,1754448652411,-400.0,0.00035616,14]
[377581522,1754448652420,-2284.92,0.00035616,14]
[377581523,1754448652429,-2049.87,0.00035616,14]
[377581524,1754448652438,-460.49028978,0.00035616,14]
[377581525,1754448652447,-400.0,0.00035616,14]
[377581526,1754448652456,-400.0,0.00035616,14]
[377581527,1754448652466,-400.0,0.00035616,14]
[377581528,1754448652474,-400.0,0.00035616,14]
[377581529,1754448652484,-400.0,0.00035616,14]
[377581530,1754448652493,-400.0,0.00035616,14]
[377581531,1754448652502,-1324.35,0.00035616,14]
[377581532,1754448652512,-400.0,0.00035616,14]
[377581533,1754448652522,-400.0,0.00035616,14]
[377581534,1754448652531,-400.0,0.00035616,14]
[377581535,1754448652541,-400.0,0.00035616,14]
[377581536,1754448652550,-500.0,0.00035616,14]
[377581537,1754448652559,-500.0,0.00035616,14]
[377581538,1754448652568,-400.0,0.00035616,14]
[377581539,1754448652577,-500.0,0.00035616,14]
[377581540,1754448652586,-500.0,0.00035616,14]
[377581541,1754448652595,-500.0,0.00035616,14]
[377581542,1754448652604,-500.0,0.00035616,14]
[377581543,1754448652613,-500.0,0.00035616,14]
[377581544,1754448652622,-500.0,0.00035616,14]
[377581545,1754448652631,-536.81,0.00035616,14]
[377581546,1754448652640,-248.85155264,0.00035616,14]
[377581547,1754448652650,-400.0,0.00035616,14]
[377581548,1754448652660,-1978.73,0.00035616,14]
[377581549,1754448652669,-2066.75,0.00035616,14]
[377581550,1754448652679,-400.0,0.00035616,14]
[377581551,1754448652689,-400.0,0.00035616,14]
[377581552,1754448652698,-400.0,0.00035616,14]
[377581553,1754448652707,-1380.46,0.00035616,14]
[377581554,1754448652717,-2370.33,0.00035616,14]
[377581555,1754448652726,-400.0,0.00035616,14]
[377581556,1754448652735,-400.0,0.00035616,14]
[377581557,1754448652744,-618.59,0.00035616,14]
[377581558,1754448652753,-400.0,0.00035616,14]
[377581559,1754448652762,-1918.49,0.00035616,14]
[377581560,1754448652772,-681.38,0.00035616,14]
[377581561,1754448652781,-400.0,0.00035616,14]
[377581562,1754448652791,-400.0,0.00035616,14]
[377581563,1754448652801,-400.0,0.00035616,14]
[377581564,1754448652810,-400.0,0.00035616,14]
[377581565,1754448652819,-898.87,0.00035616,14]
[377581566,1754448652828,-1159.52,0.00035616,14]
[377581567,1754448652837,-400.0,0.00035616,14]
[377581568,1754448652847,-400.0,0.00035616,14]
[377581569,1754448652860,-589.89,0.00035616,14]
[377581570,1754448652869,-2526.57,0.00035616,14]
[377581571,1754448652879,-400.0,0.00035616,14]
[377581572,1754448652888,-400.0,0.00035616,14]
[377581573,1754448652899,-400.0,0.00035616,14]
[377581574,1754448652908,-481.3,0.00035616,14]
[377581575,1754448652917,-400.0,0.00035616,14]
[377581576,1754448652927,-288.13051566,0.00035616,14]
[377581577,1754448652938,-400.0,0.00035616,14]
[377581578,1754448652948,-1943.34,0.00035616,14]
[377581579,1754448652959,-771.1,0.00035616,14]
[377581580,1754448652968,-738.49,0.00035616,14]
[377581581,1754448652977,-1101.66,0.00035616,14]
[377581582,1754448652987,-2119.77,0.00035616,14]
[377581583,1754448652997,-151.0,0.00035616,7]
[377581584,1754448653006,-151.0,0.00035616,7]
[377581585,1754448653015,-400.0,0.00035616,14]
[377581586,1754448653025,-151.0,0.00035616,7]
[377581587,1754448653035,-151.0,0.00035616,7]
[377581588,1754448653044,-400.0,0.00035616,14]
[377581589,1754448653053,-151.0,0.00035616,7]
[377581590,1754448653063,-400.0,0.00035616,14]
[377581591,1754448653072,-400.0,0.00035616,14]
[377581592,1754448653081,-400.0,0.00035616,14]
[377581593,1754448653091,-2486.07,0.00035616,14]
[377581594,1754448653101,-400.0,0.00035616,14]
[377581595,1754448653110,-400.0,0.00035616,14]
[377581596,1754448653120,-400.0,0.00035616,14]
[377581597,1754448653129,-400.0,0.00035616,14]
[377581598,1754448653138,-825.89,0.00035616,14]
[377581599,1754448653147,-151.0,0.00035616,7]
[377581600,1754448653156,-1301.09,0.00035616,14]
[377581601,1754448653165,-400.0,0.00035616,14]
[377581602,1754448653174,-400.0,0.00035616,14]
[377581603,1754448653182,-151.0,0.00035616,7]
[377581604,1754448653191,-400.0,0.00035616,14]
[377581605,1754448653200,-151.0,0.00035616,7]
[377581606,1754448653209,-400.0,0.00035616,14]
[377581607,1754448653219,-400.0,0.00035616,14]
[377581608,1754448653228,-400.0,0.00035616,14]
[377581609,1754448653238,-400.0,0.00035616,14]
[377581610,1754448653247,-1940.75,0.00035616,14]
[377581611,1754448653255,-681.33,0.00035616,14]
[377581612,1754448653265,-400.0,0.00035616,14]
[377581613,1754448653274,-424.16,0.00035616,14]
[377581614,1754448653283,-400.0,0.00035616,14]
[377581615,1754448653292,-2332.46,0.00035616,14]
[377581616,1754448653301,-400.0,0.00035616,14]
[377581617,1754448653310,-400.0,0.00035616,14]
[377581618,1754448653319,-400.0,0.00035616,14]
[377581619,1754448653328,-400.0,0.00035616,14]
[377581620,1754448653337,-403.96572038,0.00035616,14]
[377581621,1754448653347,-400.0,0.00035616,14]
[377581622,1754448653356,-400.0,0.00035616,14]
[377581623,1754448653365,-2008.42,0.00035616,14]
[377581624,1754448653374,-1594.04,0.00035616,14]
[377581625,1754448653384,-400.0,0.00035616,14]
[377581626,1754448653393,-400.0,0.00035616,14]
[377581627,1754448653402,-1556.67,0.00035616,14]
[377581628,1754448653411,-400.0,0.00035616,14]
[377581629,1754448653420,-400.0,0.00035616,14]
[377581630,1754448653429,-803.41,0.00035616,14]
[377581631,1754448653439,-151.0,0.00035616,7]
[377581632,1754448653447,-400.0,0.00035616,14]
[377581633,1754448653457,-1049.45,0.00035616,14]
[377581634,1754448653466,-155.2173,0.00035616,7]
[377581635,1754448653475,-2287.11,0.00035616,14]
[377581636,1754448653484,-400.0,0.00035616,14]
[377581637,1754448653493,-400.0,0.00035616,14]
[377581638,1754448653502,-3089.8,0.00035616,14]
[377581639,1754448653511,-2094.9,0.00035616,14]
[377581640,1754448653520,-388.76954349,0.00035616,14]
[377581641,1754448653529,-400.0,0.00035616,14]
[377581642,1754448653538,-2284.3,0.00035616,14]
[377581643,1754448653547,-400.0,0.00035616,14]
[377581644,1754448653556,-1760.6,0.00035616,14]
[377581645,1754448653565,-400.0,0.00035616,14]
[377581646,1754448653574,-590.2,0.00035616,14]
[377581647,1754448653584,-904.68,0.00035616,14]
[377581648,1754448653594,-400.69634094,0.00035616,14]
[377581649,1754448653603,-400.0,0.00035616,14]
[377581650,1754448653611,-400.0,0.00035616,14]
[377581651,1754448653620,-524.39,0.00035616,14]
[377581652,1754448653630,-400.0,0.00035616,14]
[377581653,1754448653639,-538.64,0.00035616,14]
[377581654,1754448653648,-400.0,0.00035616,14]
[377581655,1754448653657,-400.0,0.00035616,14]
[377581656,1754448653666,-477.4,0.00035616,14]
[377581657,1754448653675,-473.05,0.00035616,14]
[377581658,1754448653684,-400.69442028,0.00035616,14]
[377581659,1754448653693,-681.47,0.00035616,14]
[377581660,1754448653702,-1562.45,0.00035616,14]
[377581661,1754448653711,-400.0,0.00035616,14]
[377581662,1754448653720,-992.23,0.00035616,14]
[377581663,1754448653729,-400.0,0.00035616,14]
[377581664,1754448653739,-400.0,0.00035616,14]
[377581665,1754448653748,-151.0,0.00035616,7]
[377581666,1754448653758,-151.0,0.00035616,7]
[377581667,1754448653767,-1343.91,0.00035616,14]
[377581668,1754448653776,-151.0,0.00035616,7]
[377581669,1754448653785,-169.213446,0.00035616,7]
[377581670,1754448653794,-400.0,0.00035616,14]
[377581671,1754448653803,-402.35,0.00035616,14]
[377581672,1754448653813,-1123.2,0.00035616,14]
[377581673,1754448653822,-400.0,0.00035616,14]
[377581674,1754448653831,-402.46029004,0.00035616,14]
[377581675,1754448653840,-402.76935337,0.00035616,14]
[377581676,1754448653850,-400.0,0.00035616,14]
[377581677,1754448653862,-400.0,0.00035616,14]
[377581678,1754448653872,-400.0,0.00035616,14]
[377581679,1754448653882,-659.8,0.00035616,14]
[377581680,1754448653891,-400.0,0.00035616,14]
[377581681,1754448653902,-905.29,0.00035616,14]
[377581682,1754448653912,-400.0,0.00035616,14]
[377581683,1754448653921,-400.0,0.00035616,14]
[377581684,1754448653932,-400.0,0.00035616,14]
[377581685,1754448653941,-400.0,0.00035616,14]
[377581686,1754448653951,-833.81,0.00035616,14]
[377581687,1754448653960,-400.0,0.00035616,14]
[377581688,1754448653970,-423.93,0.00035616,14]
[377581689,1754448653979,-400.0,0.00035616,14]
[377581690,1754448653989,-1620.39,0.00035616,14]
[377581691,1754448653999,-400.0,0.00035616,14]
[377581692,1754448654009,-1647.26,0.00035616,14]
[377581693,1754448654019,-400.0,0.00035616,14]
[377581694,1754448654029,-2673.63,0.00035616,14]
[377581695,1754448654038,-400.0,0.00035616,14]
[377581696,1754448654048,-400.0,0.00035616,14]
[377581697,1754448654057,-3032.43,0.00035616,14]
[377581698,1754448654067,-400.0,0.00035616,14]
[377581699,1754448654076,-400.0,0.00035616,14]
[377581700,1754448654086,-400.0,0.00035616,14]
[377581701,1754448654095,-1352.85,0.00035616,14]
[377581702,1754448654106,-2718.79,0.00035616,14]
[377581703,1754448654116,-652.53,0.00035616,14]
[377581704,1754448654125,-433.46381186,0.00035616,14]
[377581705,1754448654135,-537.68,0.00035616,14]
[377581706,1754448654144,-591.66,0.00035616,14]
[377581707,1754448654154,-400.0,0.00035616,14]
[377581708,1754448654164,-400.0,0.00035616,14]
[377581709,1754448654174,-400.0,0.00035616,14]
[377581710,1754448654183,-400.0,0.00035616,14]
[377581711,1754448654193,-1325.26,0.00035616,14]
[377581712,1754448654203,-400.0,0.00035616,14]
[377581713,1754448654213,-400.0,0.00035616,14]
[377581714,1754448654222,-400.0,0.00035616,14]
[377581715,1754448654232,-159.634736,0.00035616,7]
[377581716,1754448654242,-2118.84,0.00035616,14]
[377581717,1754448654252,-1194.25,0.00035616,14]
[377581718,1754448654261,-687.17,0.00035616,14]
[377581719,1754448654271,-3219.58,0.00035616,14]
[377581720,1754448654281,-2996.94,0.00035616,14]
[377581721,1754448654290,-400.0,0.00035616,14]
[377581722,1754448654300,-400.0,0.00035616,14]
[377581723,1754448654310,-400.0,0.00035616,14]
[377581724,1754448654319,-400.25536324,0.00035616,14]
[377581725,1754448654328,-1193.92,0.00035616,14]
[377581726,1754448654338,-400.0,0.00035616,14]
[377581727,1754448654347,-1273.79,0.00035616,14]
[377581728,1754448654357,-400.0,0.00035616,14]
[377581729,1754448654366,-400.0,0.00035616,14]
[377581730,1754448654375,-400.0,0.00035616,14]
[377581731,1754448654385,-400.0,0.00035616,14]
[377581732,1754448654394,-400.0,0.00035616,14]
[377581733,1754448654403,-825.46,0.00035616,14]
[377581734,1754448654413,-400.0,0.00035616,14]
[377581735,1754448654423,-400.0,0.00035616,14]
[377581736,1754448654432,-438.34036498,0.00035616,14]
[377581737,1754448654442,-509.96,0.00035616,14]
[377581738,1754448654452,-2113.04,0.00035616,14]
[377581739,1754448654462,-151.0,0.00035616,7]
[377581740,1754448654472,-2100.37,0.00035616,14]
[377581741,1754448654481,-400.0,0.00035616,14]
[377581742,1754448654492,-400.0,0.00035616,14]
[377581743,1754448654502,-151.0,0.00035616,7]
[377581744,1754448654512,-400.0,0.00035616,14]
[377581745,1754448654522,-151.0,0.00035616,7]
[377581746,1754448654532,-400.0,0.00035616,14]
[377581747,1754448654542,-400.0,0.00035616,14]
[377581748,1754448654552,-1931.44,0.00035616,14]
[377581749,1754448654562,-445.22,0.00035616,14]
[377581750,1754448654572,-400.0,0.00035616,14]
[377581751,1754448654581,-400.0,0.00035616,14]
[377581752,1754448654591,-2053.25,0.00035616,14]
[377581753,1754448654599,-1620.16,0.00035616,14]
[377581754,1754448654609,-400.0,0.00035616,14]
[377581755,1754448654619,-400.0,0.00035616,14]
[377581756,1754448654628,-590.55,0.00035616,14]
[377581757,1754448654638,-401.02345699,0.00035616,14]
[377581758,1754448654647,-400.0,0.00035616,14]
[377581759,1754448654656,-400.0,0.00035616,14]
[377581760,1754448654666,-400.0,0.00035616,14]
[377581761,1754448654676,-400.0,0.00035616,14]
[377581762,1754448654687,-401.17196402,0.00035616,14]
[377581763,1754448654697,-404.38002614,0.00035616,14]
[377581764,1754448654707,-2493.6,0.00035616,14]
[377581765,1754448654716,-400.0,0.00035616,14]
[377581766,1754448654726,-457.71,0.00035616,14]
[377581767,1754448654736,-400.0,0.00035616,14]
[377581768,1754448654746,-400.0,0.00035616,14]
[377581769,1754448654756,-400.0,0.00035616,14]
[377581770,1754448654766,-2044.76,0.00035616,14]
[377581771,1754448654776,-500.0,0.00035616,10]
[377581772,1754448654786,-1325.52,0.00035616,14]
[377581773,1754448654797,-400.0,0.00035616,14]
[377581774,1754448654808,-3399.61,0.00035616,14]
[377581775,1754448654818,-400.0,0.00035616,14]
[377581776,1754448654828,-486.69,0.00035616,14]
[377581777,1754448654837,-400.0,0.00035616,14]
[377581778,1754448654850,-723.29,0.00035616,14]
[377581779,1754448654860,-400.0,0.00035616,14]
[377581780,1754448654870,-1026.17,0.00035616,14]
[377581781,1754448654880,-400.0,0.00035616,14]
[377581782,1754448654891,-651.88,0.00035616,14]
[377581783,1754448654901,-400.0,0.00035616,14]
[377581784,1754448654911,-400.0,0.00035616,14]
[377581785,1754448654922,-903.69,0.00035616,14]
[377581786,1754448654933,-232.4403,0.00035616,14]
[377581787,1754448654943,-1532.92,0.00035616,14]
[377581788,1754448654953,-400.0,0.00035616,14]
[377581789,1754448654963,-672.26,0.00035616,14]
[377581790,1754448654973,-400.0,0.00035616,14]
[377581791,1754448654983,-400.0,0.00035616,14]
[377581792,1754448654994,-1382.08,0.00035616,14]
[377581793,1754448655004,-400.0,0.00035616,14]
[377581794,1754448655014,-400.0,0.00035616,14]
[377581795,1754448655024,-2614.37,0.00035616,14]
[377581796,1754448655034,-400.0,0.00035616,14]
[377581797,1754448655044,-400.0,0.00035616,14]
[377581798,1754448655054,-1985.89,0.00035616,14]
[377581799,1754448655064,-1383.95,0.00035616,14]
[377581800,1754448655086,-400.0,0.00035616,14]
[377581801,1754448655097,-677.89,0.00035616,14]
[377581802,1754448655108,-400.0,0.00035616,14]
[377581803,1754448655119,-1455.67,0.00035616,14]
[377581804,1754448655129,-1455.67,0.00035616,14]
[377581805,1754448655139,-1455.67,0.00035616,14]
[377581806,1754448655150,-1455.67,0.00035616,14]
[377581807,1754448655160,-1455.67,0.00035616,14]
[377581808,1754448655171,-1455.67,0.00035616,14]
[377581809,1754448655182,-1028.28,0.00035616,14]
[377581810,1754448655193,-400.0,0.00035616,14]